bitfinex-derivatives/quotes_ETHF0:USTF0_20210111
["timestamp","ask_amount","ask_price","bid_price","bid_amount"]
[1610325093973,6.13289,1241.5,1239.7,66.741]
[1610325095375,2.1233,1241.5,1240.5,4.00959]
[1610325095574,2.1233,1241.5,1239.7,66.741]
[1610325097376,2.1233,1241.5,1240.8,4.00959]
[1610325097776,2.1233,1241.5,1239.7,66.741]
[1610325098580,5.6243,1242.1,1239.7,66.741]
[1610325098780,5.6243,1242.1,1239.7,68.2838]
[1610325099381,4.00959,1241.8,1241.6,4.00959]
[1610325099579,4.00959,1241.8,1239.7,68.2838]
[1610325099580,6.51349,1241.8,1239.7,68.2838]
[1610325100781,5.2604481,1241.7,1239.7,68.2838]
[1610325101382,5.2604481,1241.7,1241.1,4.00959]
[1610325101383,4.00959,1241.4,1241.1,4.00959]
[1610325101783,6.28819,1241.4,1239.7,1.5428]
[1610325102984,6.28819,1241.4,1239.0,1.9424]
[1610325103185,2.2786,1241.4,1238.6,5.8974]
[1610325103384,5.26182209,1241.3,1238.6,5.8974]
[1610325104687,5.26182209,1241.3,1238.7,1.23358033]
[1610325105388,5.26182209,1241.3,1241.2,4.00959]
[1610325113500,9.27141209,1241.3,1241.2,4.00959]
[1610325113702,9.27141209,1241.3,1240.7,57.7268]
[1610325114702,5.26208642,1241.2,1240.2,48.4128]
[1610325115504,4.00959,1240.7,1240.2,48.4128]
[1610325115703,5.73589,1240.7,1240.2,48.4128]
[1610325116504,1.7263,1240.7,1240.2,48.4128]
[1610325117306,5.26276729,1240.6,1240.2,48.4128]
[1610325117506,5.26276729,1240.6,1240.5,4.00959]
[1610325118707,1.7263,1240.7,1240.5,4.00959]
[1610325119106,2.2786,1241.4,1240.5,4.00959]
[1610325119307,2.5039,1241.8,1240.5,4.00959]
[1610325119508,4.00959,1242.1,1241.7,4.00959]
[1610325120509,4.00959,1242.1,1240.9,45.7676]
[1610325121410,5.2602073,1242.0,1240.9,45.7676]
[1610325121610,5.2602073,1242.0,1241.9,4.00959]
[1610325124418,5.14506125,1242.1,1241.9,4.00959]
[1610325125018,6.0056,1243.1,1241.9,4.00959]
[1610325125618,6.0056,1243.1,1242.6,4.00959]
[1610325126520,56.0657,1243.2,1242.6,4.00959]
[1610325127123,5.14317889,1243.0,1242.6,4.00959]
[1610325127319,7.38607889,1243.0,1242.6,4.00959]
[1610325127521,7.38607889,1243.0,1242.9,4.00959]
[1610325130724,2.2429,1243.0,1242.9,4.00959]
[1610325132427,4.00959,1243.2,1242.9,4.00959]
[1610325133529,4.00959,1243.2,1243.1,4.00959]
[1610325133729,4.00959,1243.2,1241.9,54.2957]
[1610325134130,6.15879,1243.2,1241.9,54.2957]
[1610325134629,11.30209206,1243.2,1241.9,54.2957]
[1610325135530,7.29250206,1243.2,1243.0,4.00959]
[1610325135931,5.14307825,1243.1,1243.0,4.00959]
[1610325136931,5.14307825,1243.1,1241.9,54.2957]
[1610325137531,4.00959,1243.0,1242.9,4.00959]
[1610325138635,4.00959,1243.0,1241.9,54.2957]
[1610325138835,9.15174665,1243.0,1241.9,54.2957]
[1610325139035,9.15174665,1243.0,1241.4,3.405]
[1610325139535,5.14215665,1243.0,1242.6,4.00959]
[1610325140438,5.14220341,1242.9,1242.6,4.00959]
[1610325140838,7.22640341,1242.9,1242.6,4.00959]
[1610325141537,7.22640341,1242.9,1242.8,4.00959]
[1610325142037,2.0842,1242.9,1242.8,4.00959]
[1610325143339,7.22556445,1242.9,1242.8,4.00959]
[1610325144842,2.0842,1242.9,1242.8,4.00959]
[1610325145940,2.1492,1243.2,1242.8,4.00959]
[1610325146141,4.00959,1243.7,1242.8,4.00959]
[1610325147540,5.14093362,1243.6,1241.8,49.7082]
[1610325148040,6.65173362,1243.6,1241.8,49.7082]
[1610325148441,6.65173362,1243.6,1242.6,58.8294]
[1610325148842,5.14083519,1243.5,1242.6,58.8294]
[1610325149643,4.00959,1243.4,1243.0,4.00959]
[1610325150345,4.00959,1243.4,1242.6,58.8294]
[1610325151545,4.00959,1243.1,1242.8,4.00959]
[1610325151746,5.57709,1243.1,1242.8,4.00959]
[1610325151948,5.57709,1243.1,1242.6,58.8294]
[1610325153147,5.14344379,1243.0,1242.6,58.8294]
[1610325153545,4.00959,1242.7,1242.6,58.8294]
[1610325153746,6.38959,1242.7,1242.6,58.8294]
[1610325154647,11.53314617,1242.7,1242.6,58.8294]
[1610325154850,11.53314617,1242.7,1242.1,7.41459]
[1610325155047,11.53314617,1242.7,1242.1,4.00959]
[1610325155250,11.53314617,1242.7,1241.3,73.382]
[1610325155651,37.52355617,1242.7,1241.3,66.571]
[1610325155850,7.52355617,1242.7,1241.3,66.571]
[1610325156251,5.14394661,1242.6,1241.3,66.571]
[1610325157652,5.14394661,1242.6,1242.3,4.00959]
[1610325159052,2.38,1242.7,1242.3,4.00959]
[1610325159252,1.5675,1243.1,1242.3,4.00959]
[1610325159453,41.7341,1244.2,1242.3,4.00959]
[1610325159651,41.7341,1244.2,1243.0,4.00959]
[1610325159852,103.1383,1244.2,1243.0,4.00959]
[1610325160252,73.1383,1244.2,1243.0,4.00959]
[1610325161755,6.10149,1243.5,1243.4,4.00959]
[1610325162153,6.10149,1243.5,1241.9,63.3228]
[1610325163155,5.14088133,1243.4,1241.9,63.3228]
[1610325163354,30.0,1243.3,1241.9,63.3228]
[1610325163752,30.0,1243.3,1242.3,4.00959]
[1610325163753,6.25799,1242.4,1242.3,4.00959]
[1610325164755,6.25799,1242.4,1241.9,63.3228]
[1610325165656,2.2484,1242.4,1242.2,4.00959]
[1610325168761,11.6655,1243.3,1242.2,4.00959]
[1610325168961,11.6655,1243.3,1242.2,7.41459]
[1610325169561,41.6655,1243.3,1242.2,7.41459]
[1610325169762,4.00959,1242.3,1242.2,3.405]
[1610325169962,4.00959,1242.3,1241.9,6.811]
[1610325170161,6.30709,1242.3,1241.9,6.811]
[1610325170763,6.30709,1242.3,1241.2,57.7186]
[1610325171665,2.2975,1242.3,1242.0,4.00959]
[1610325173067,2.2975,1242.3,1241.2,57.7186]
[1610325173668,2.2975,1242.3,1241.2,61.72819]
[1610325173669,4.00959,1241.8,1241.2,61.72819]
[1610325173868,5.74849,1241.8,1241.2,61.72819]
[1610325174167,5.74849,1241.8,1241.2,58.32319]
[1610325174770,5.74849,1241.8,1240.1,62.1111]
[1610325175773,4.00959,1241.5,1241.1,4.00959]
[1610325175976,5.62229,1241.5,1241.1,4.00959]
[1610325177076,1.6127,1241.5,1241.1,4.00959]
[1610325177676,1.6127,1241.5,1241.4,4.00959]
[1610325179077,1.6127,1241.5,1240.3,1.9187]
[1610325179477,1.6127,1241.5,1240.1,62.1111]
[1610325179677,4.00959,1241.3,1241.1,4.00959]
[1610325181280,4.00959,1241.3,1240.1,62.1111]
[1610325181682,34.00959,1241.3,1240.1,62.1111]
[1610325182085,34.00959,1241.3,1240.2,1.23322403]
[1610325183787,30.0,1241.3,1241.0,4.00959]
[1610325183987,31.7389,1241.8,1240.2,1.23322403]
[1610325184990,5.08918902,1241.7,1240.2,1.23322403]
[1610325185691,4.00959,1241.4,1241.3,4.00959]
[1610325186092,6.16659,1241.4,1240.2,8.76402403]
[1610325186691,36.16659,1241.4,1240.2,8.76402403]
[1610325187591,36.16659,1241.4,1240.3,1.23342714]
[1610325187792,4.00959,1240.4,1240.3,1.23342714]
[1610325187994,6.01489,1240.4,1240.3,1.23342714]
[1610325189092,6.01489,1240.4,1240.2,7.5308]
[1610325189293,36.01489,1240.4,1240.2,7.5308]
[1610325189897,6.01489,1240.4,1240.2,7.5308]
[1610325190094,6.01489,1240.4,1239.4,52.0381]
[1610325190795,30.0,1240.3,1239.4,52.0381]
[1610325191799,4.00959,1239.5,1239.4,52.0381]
[1610325191999,36.38919,1239.5,1239.4,52.0381]
[1610325193002,6.38919,1239.5,1239.4,52.0381]
[1610325195205,6.38919,1239.5,1238.6,50.7158]
[1610325195605,2.3796,1239.5,1238.6,50.7158]
[1610325195805,2.3796,1239.5,1239.4,4.00959]
[1610325196005,2.3796,1239.5,1238.6,50.7158]
[1610325197005,4.00959,1239.7,1238.6,50.7158]
[1610325197805,1.5943,1239.5,1238.6,50.7158]
[1610325199607,2.4111,1239.8,1238.6,50.7158]
[1610325199805,2.4111,1239.8,1239.7,4.00959]
[1610325200813,52.8577,1240.4,1239.7,4.00959]
[1610325201709,52.8577,1240.4,1240.3,4.00959]
[1610325202708,52.8577,1240.4,1239.6,1.5492]
[1610325202909,54.8315,1240.4,1239.3,4.9476]
[1610325203709,4.00959,1240.2,1239.6,4.00959]
[1610325204811,4.00959,1240.2,1239.3,3.405]
[1610325205011,34.00959,1240.2,1239.3,3.405]
[1610325205612,34.00959,1240.2,1238.7,63.9024]
[1610325205812,4.00959,1239.3,1239.0,4.00959]
[1610325206213,6.26509,1239.3,1238.7,63.9024]
[1610325207718,4.00959,1238.8,1238.7,63.9024]
[1610325207917,6.44499,1238.8,1238.7,63.9024]
[1610325208919,2.4354,1238.8,1238.7,63.9024]
[1610325209721,2.4354,1238.8,1238.7,67.91199]
[1610325210820,2.4354,1238.8,1238.7,63.9024]
[1610325211724,6.44499,1238.8,1238.7,63.9024]
[1610325213328,2.4354,1238.8,1238.7,63.9024]
[1610325213527,1.6688,1238.8,1238.7,63.9024]
[1610325214129,1.6688,1238.8,1238.6,4.00959]
[1610325216331,2.2555,1239.3,1238.6,4.00959]
[1610325216532,1.9738,1240.4,1238.6,4.00959]
[1610325216931,5.964,1240.5,1238.6,4.00959]
[1610325217534,35.964,1240.5,1238.6,4.00959]
[1610325217935,4.00959,1239.4,1238.6,4.00959]
[1610325218335,6.33499,1239.4,1238.6,4.00959]
[1610325219837,2.3254,1239.4,1239.0,4.00959]
[1610325221838,6.33499,1239.4,1239.3,4.00959]
[1610325222438,6.33499,1239.4,1238.3,3.405]
[1610325223439,2.3254,1239.4,1238.3,3.405]
[1610325223640,2.4065,1239.8,1238.3,3.405]
[1610325223840,2.4065,1239.8,1239.7,4.00959]
[1610325224441,4.00959,1240.6,1239.7,4.00959]
[1610325225843,4.00959,1240.4,1240.3,4.00959]
[1610325226043,4.00959,1240.4,1239.5,2.1218]
[1610325227346,4.00959,1240.4,1239.2,1.5883]
[1610325227750,34.00959,1240.4,1239.2,1.5883]
[1610325227949,34.00959,1240.4,1239.3,4.00959]
[1610325227950,4.00959,1239.5,1239.3,4.00959]
[1610325229148,4.00959,1239.5,1237.3,0.24733473]
[1610325229348,4.00959,1239.5,1237.2,0.24734221]
[1610325229746,4.00959,1239.5,1238.4,1.23491182]
[1610325229949,4.00959,1239.1,1239.0,4.00959]
[1610325230149,4.00959,1239.1,1238.4,1.23491182]
[1610325231851,4.00959,1238.8,1238.7,4.00959]
[1610325232450,2.1774,1238.9,1238.7,4.00959]
[1610325234155,4.00959,1239.1,1238.7,4.00959]
[1610325235858,4.00959,1238.9,1238.7,4.00959]
[1610325236058,6.09159,1238.9,1238.7,4.00959]
[1610325236459,2.082,1238.9,1238.7,4.00959]
[1610325237061,1.5426,1239.3,1238.7,4.00959]
[1610325237258,1.869,1239.6,1238.7,4.00959]
[1610325237457,1.647,1239.9,1238.7,4.00959]
[1610325237758,63.6296,1240.0,1238.7,4.00959]
[1610325237965,4.00959,1239.3,1239.2,4.00959]
[1610325239459,4.00959,1239.3,1238.8,1.23498985]
[1610325239861,4.00959,1238.9,1238.8,1.23498985]
[1610325240061,6.23859,1238.9,1238.3,3.405]
[1610325241864,2.229,1238.9,1238.7,4.00959]
[1610325242867,2.229,1238.9,1238.3,3.405]
[1610325243866,2.229,1238.9,1238.8,4.00959]
[1610325244066,4.00959,1239.3,1238.8,4.00959]
[1610325245468,4.00959,1239.3,1238.4,1.23525067]
[1610325245668,4.00959,1239.3,1238.3,3.405]
[1610325246068,32.0658,1239.4,1238.3,3.405]
[1610325247069,32.0658,1239.4,1238.4,1.23582316]
[1610325247972,4.00959,1238.5,1238.4,1.23582316]
[1610325248371,6.16159,1238.5,1237.8,62.4991]
[1610325250072,2.152,1238.5,1238.3,4.00959]
[1610325251674,2.0658,1239.4,1238.3,4.00959]
[1610325251874,2.0658,1239.4,1238.3,7.41459]
[1610325252074,5.9712,1239.5,1239.3,4.00959]
[1610325252973,5.9712,1239.5,1238.4,1.23510229]
[1610325253174,37.8188,1239.5,1238.4,1.23510229]
[1610325253975,4.00959,1238.6,1238.5,4.00959]
[1610325254375,4.00959,1238.6,1238.3,3.405]
[1610325254574,6.24289,1238.6,1238.3,3.405]
[1610325255374,6.24289,1238.6,1238.1,57.6792]
[1610325255976,4.00959,1238.3,1238.1,57.6792]
[1610325256175,5.94549,1238.3,1238.1,57.6792]
[1610325257677,1.9359,1238.3,1238.1,57.6792]
[1610325258076,1.9359,1238.3,1238.2,4.00959]
[1610325258477,2.2333,1238.6,1238.2,4.00959]
[1610325259077,2.2333,1238.6,1238.1,57.6792]
[1610325259278,32.2333,1238.6,1238.1,57.6792]
[1610325259479,2.2333,1238.6,1238.1,57.6792]
[1610325259680,2.1743,1239.0,1238.1,57.6792]
[1610325259881,1.5988,1238.6,1238.1,57.6792]
[1610325260082,4.00959,1238.2,1238.1,61.68879]
[1610325260283,4.00959,1238.2,1238.1,57.6792]
[1610325261083,4.00959,1238.2,1238.1,1.23593149]
[1610325261683,2.1967,1238.3,1238.1,1.23593149]
[1610325261985,2.1967,1238.3,1238.2,4.00959]
[1610325262186,1.5988,1238.6,1238.2,4.00959]
[1610325262987,45.3349,1239.0,1238.2,4.00959]
[1610325263587,45.3349,1239.0,1238.2,5.67559]
[1610325263988,45.3349,1239.0,1238.9,4.00959]
[1610325264787,11.4785,1240.7,1238.9,4.00959]
[1610325264788,30.0,1240.3,1238.9,4.00959]
[1610325264988,30.0,1240.6,1238.9,4.00959]
[1610325266094,30.0,1240.6,1239.3,4.00959]
[1610325266293,30.0,1240.6,1238.5,1.934]
[1610325266494,31.6445,1240.6,1238.2,5.071]
[1610325266895,5.24387241,1240.5,1238.2,5.071]
[1610325267096,30.0,1240.4,1238.2,5.071]
[1610325267696,30.0,1240.4,1238.2,3.405]
[1610325267895,30.0,1240.4,1237.8,2.1904]
[1610325268098,4.00959,1238.0,1237.7,4.00959]
[1610325268296,2.3946,1238.7,1237.7,4.00959]
[1610325268698,32.3946,1238.7,1237.7,4.00959]
[1610325270098,4.00959,1237.8,1237.7,4.00959]
[1610325274204,97.9419,1238.6,1237.7,4.00959]
[1610325274804,97.9419,1238.6,1237.3,5.6751]
[1610325275407,97.9419,1238.6,1237.3,3.405]
[1610325276118,97.9419,1238.6,1237.0,58.8816]
[1610325276119,4.00959,1237.4,1237.0,58.8816]
[1610325277209,34.00959,1237.4,1237.0,58.8816]
[1610325278212,2.1966,1237.7,1237.0,58.8816]
[1610325278213,4.00959,1237.1,1237.0,58.8816]
[1610325280018,4.00959,1237.1,1236.7,4.00959]
[1610325280220,2.1966,1237.7,1237.0,4.00959]
[1610325281426,75.341,1238.1,1237.0,4.00959]
[1610325282124,4.00959,1237.1,1237.0,4.00959]
[1610325282525,4.00959,1237.1,1236.8,2.4138]
[1610325283325,4.00959,1237.1,1236.5,65.2255]
[1610325284125,4.00959,1236.6,1236.5,69.23509]
[1610325284626,4.00959,1236.6,1236.5,65.2255]
[1610325284825,2.1998,1237.1,1236.5,65.2255]
[1610325285628,1.7958,1237.4,1236.5,65.2255]
[1610325286229,1.7958,1237.4,1237.0,4.00959]
[1610325286428,1.7958,1237.4,1236.5,65.2255]
[1610325286632,1.7958,1237.4,1236.6,1.23737366]
[1610325288029,1.7958,1237.4,1236.5,65.2255]
[1610325288230,4.00959,1236.6,1236.5,65.2255]
[1610325289434,4.00959,1236.6,1236.3,1.6768]
[1610325289631,4.00959,1236.6,1236.0,1.9887]
[1610325290232,4.00959,1236.3,1236.1,4.00959]
[1610325290432,4.00959,1236.3,1235.9,3.405]
[1610325291035,4.00959,1236.3,1236.1,1.23787485]
[1610325291235,34.00959,1236.3,1236.1,1.23787485]
[1610325292335,4.00959,1236.3,1235.3,1.2383571]
[1610325292534,34.00959,1236.3,1235.3,1.2383571]
[1610325292736,36.37399,1236.3,1235.3,1.2383571]
[1610325293536,5.6694,1236.2,1235.3,1.2383571]
[1610325293936,5.6694,1236.2,1234.8,1.23860382]
[1610325294138,4.00959,1234.9,1234.8,1.23860382]
[1610325295338,4.00959,1234.9,1233.6,10.216]
[1610325295339,4.00959,1234.9,1234.7,1.23864604]
[1610325295540,2.3794,1235.4,1234.7,1.23864604]
[1610325296138,5.6694,1236.2,1235.1,4.00959]
[1610325296139,4.00959,1235.3,1235.1,4.00959]
[1610325296341,2.3935,1235.9,1235.1,4.00959]
[1610325298244,2.3935,1235.9,1235.3,4.00959]
[1610325299848,2.3935,1235.9,1234.7,2.469]
[1610325300248,4.00959,1234.8,1234.7,2.469]
[1610325300846,1.9919,1235.5,1234.7,2.469]
[1610325301045,1.9919,1235.5,1234.7,3.70762062]
[1610325302251,4.00959,1234.8,1234.7,3.70762062]
[1610325302450,1.9919,1235.5,1234.7,2.469]
[1610325302654,1.9919,1235.5,1234.6,4.00959]
[1610325303854,1.9919,1235.5,1234.7,1.23849289]
[1610325304056,1.9919,1235.5,1234.7,3.10859289]
[1610325304255,4.00959,1235.4,1235.3,4.00959]
[1610325304854,4.00959,1235.4,1234.7,6.51359289]
[1610325305255,4.00959,1235.4,1234.7,5.2751]
[1610325305857,4.00959,1235.4,1234.7,1.8701]
[1610325306256,4.00959,1234.8,1234.7,1.8701]
[1610325306456,1.9192,1235.6,1234.7,1.8701]
[1610325306658,1.9192,1235.6,1234.8,1.23864432]
[1610325307356,1.9192,1235.6,1234.7,1.8701]
[1610325307960,1.9192,1235.6,1234.9,1.23874258]
[1610325308159,4.00959,1235.1,1234.9,5.24833258]
[1610325308559,4.00959,1235.1,1234.9,1.23874258]
[1610325308759,1.9192,1235.6,1234.9,1.23874258]
[1610325309562,1.9192,1235.6,1235.0,1.2386101]
[1610325310162,65.7687,1235.8,1235.0,1.2386101]
[1610325310962,65.7687,1235.8,1234.8,1.23863012]
[1610325312364,65.7687,1235.8,1235.7,4.00959]
[1610325313565,65.7687,1235.8,1235.7,5.24743066]
[1610325316566,4.6152,1236.0,1235.8,60.4141]
[1610325316966,4.6152,1236.0,1235.8,62.2821]
[1610325317567,5.7544,1239.0,1235.8,1.868]
[1610325318368,5.64989,1238.6,1238.2,4.00959]
[1610325319370,1.6403,1238.6,1238.2,4.00959]
[1610325319568,1.6403,1238.6,1235.9,1.23658046]
[1610325319970,1.6403,1238.6,1235.8,1.868]
[1610325321373,1.6403,1238.6,1235.9,1.2368439]
[1610325321575,1.6403,1238.6,1236.5,65.641]
[1610325321775,1.6403,1238.6,1236.5,67.5388]
[1610325322373,1.6403,1238.6,1237.6,4.00959]
[1610325322573,1.6403,1238.6,1236.5,67.5388]
[1610325323474,36.0125,1238.9,1236.5,67.5388]
[1610325324374,4.00959,1237.0,1236.9,4.00959]
[1610325324576,4.00959,1237.0,1236.5,67.5388]
[1610325324776,4.00959,1237.0,1236.2,2.109]
[1610325324976,4.00959,1237.0,1235.8,1.868]
[1610325325176,4.00959,1237.0,1235.5,5.6111]
[1610325326379,2.1743,1237.1,1236.5,4.00959]
[1610325326577,2.1743,1237.1,1235.5,5.6111]
[1610325327181,2.1743,1237.1,1235.9,49.5459]
[1610325328480,2.1743,1237.1,1236.1,4.00959]
[1610325328681,2.1743,1237.1,1235.9,49.5459]
[1610325329680,11.1544,1237.8,1235.9,49.5459]
[1610325330480,4.00959,1237.1,1237.0,4.00959]
[1610325330679,2.0938,1237.1,1237.0,4.00959]
[1610325332784,2.1754,1237.4,1237.0,4.00959]
[1610325333783,2.1754,1237.4,1236.5,1.8109]
[1610325334282,2.1754,1237.4,1235.9,49.5459]
[1610325334484,4.00959,1237.0,1236.8,4.00959]
[1610325334683,4.00959,1237.0,1235.9,49.5459]
[1610325335282,4.00959,1237.0,1236.0,1.23759343]
[1610325335883,34.00959,1237.0,1236.0,1.23759343]
[1610325336284,4.00959,1237.0,1236.0,1.23759343]
[1610325336486,1.6464,1237.1,1236.3,4.00959]
[1610325336886,1.6464,1237.1,1235.6,66.1798]
[1610325338187,1.6464,1237.1,1235.7,1.23805598]
[1610325338387,4.00959,1236.3,1236.1,4.00959]
[1610325338787,5.96559,1236.3,1236.1,4.00959]
[1610325338986,5.96559,1236.3,1235.7,1.23805598]
[1610325339586,5.96559,1236.3,1235.6,66.1798]
[1610325340189,35.96559,1236.3,1235.6,66.1798]
[1610325340587,4.00959,1235.7,1235.6,66.1798]
[1610325340787,5.87129,1235.7,1235.6,66.1798]
[1610325342088,35.87129,1235.7,1235.6,66.1798]
[1610325345091,46.7962,1235.6,1232.6,3.405]
[1610325345290,30.0,1235.5,1232.6,3.405]
[1610325345890,46.6025,1234.5,1232.6,3.405]
[1610325346089,30.0,1234.4,1232.6,3.405]
[1610325346490,30.0,1234.4,1232.9,4.00959]
[1610325347291,30.0,1234.4,1232.7,1.24015394]
[1610325347892,36.0831,1234.4,1232.8,10.0]
[1610325348091,36.0831,1234.4,1232.9,10.0]
[1610325348492,4.00959,1233.0,1232.7,1.24015394]
[1610325348691,4.00959,1233.0,1232.3,2.1788]
[1610325348891,4.00959,1233.0,1232.8,10.0]
[1610325349292,4.00959,1233.0,1232.4,10.0]
[1610325349492,4.00959,1233.0,1232.3,2.1788]
[1610325349791,4.00959,1233.0,1232.9,10.0]
[1610325350193,4.00959,1233.0,1232.3,2.1788]
[1610325350594,4.00959,1233.0,1232.7,4.00959]
[1610325350995,1.8865,1233.2,1232.7,4.00959]
[1610325351194,6.0696,1234.3,1232.8,10.0]
[1610325351797,6.0696,1234.3,1232.9,10.0]
[1610325352197,6.0696,1234.3,1232.7,10.0]
[1610325352597,6.0696,1234.3,1233.0,10.0]
[1610325352798,30.0,1234.2,1232.7,10.0]
[1610325353000,32.1074,1234.2,1232.7,10.0]
[1610325353198,32.1074,1234.2,1233.1,10.0]
[1610325353901,32.1074,1234.2,1233.2,10.0]
[1610325354301,32.1074,1234.2,1232.0,5.1927]
[1610325354500,32.1074,1234.2,1233.3,10.0]
[1610325354901,32.1074,1234.2,1232.1,10.0]
[1610325355101,32.1074,1234.2,1232.0,5.1927]
[1610325355303,67.3825,1233.3,1232.2,10.0]
[1610325355502,67.3825,1233.3,1232.1,10.0]
[1610325355702,69.3954,1233.3,1232.1,10.0]
[1610325355904,69.3954,1233.3,1232.2,10.0]
[1610325356404,69.3954,1233.3,1232.1,10.0]
[1610325356604,4.00959,1232.7,1232.3,4.00959]
[1610325357003,4.00959,1232.7,1232.0,5.1927]
[1610325357304,4.00959,1232.7,1232.4,10.0]
[1610325357504,4.00959,1232.7,1232.1,10.0]
[1610325358204,4.00959,1232.7,1232.2,10.0]
[1610325358503,4.00959,1232.7,1232.5,4.00959]
[1610325358704,4.00959,1232.7,1232.0,1.7877]
[1610325358904,4.00959,1232.7,1232.1,10.0]
[1610325359104,4.00959,1232.7,1232.0,1.7877]
[1610325359404,4.00959,1232.7,1232.2,10.0]
[1610325359605,4.00959,1232.7,1232.1,10.0]
[1610325359804,4.00959,1232.7,1232.2,10.0]
[1610325360206,4.00959,1232.7,1232.1,10.0]
[1610325360406,4.00959,1232.7,1232.2,10.0]
[1610325360605,4.00959,1232.3,1232.2,10.0]
[1610325360805,4.00959,1232.3,1232.0,1.7877]
[1610325361005,4.00959,1232.3,1231.9,61.2972]
[1610325361408,4.00959,1232.3,1232.1,10.0]
[1610325361806,4.00959,1232.3,1231.9,61.2972]
[1610325362007,5.97399,1232.3,1231.9,61.2972]
[1610325362406,5.97399,1232.3,1232.0,10.0]
[1610325362606,4.00959,1232.1,1232.0,10.0]
[1610325362807,4.00959,1232.1,1231.9,61.2972]
[1610325363207,4.00959,1232.1,1232.0,10.0]
[1610325364508,1.9644,1232.3,1232.0,14.00959]
[1610325364908,1.9644,1232.3,1232.1,10.0]
[1610325365108,2.393,1232.6,1232.2,10.0]
[1610325365509,2.393,1232.6,1232.1,10.0]
[1610325365708,2.393,1232.6,1231.5,5.4503]
[1610325365907,2.393,1232.6,1231.6,10.0]
[1610325366108,2.393,1232.6,1232.3,1.24142921]
[1610325366508,4.00959,1232.4,1232.3,1.24142921]
[1610325366710,34.00959,1232.4,1232.3,1.24142921]
[1610325367310,34.00959,1232.4,1232.3,11.24142921]
[1610325367610,4.00959,1232.4,1232.3,10.0]
[1610325373217,34.00959,1232.4,1232.3,10.0]
[1610325374018,34.00959,1232.4,1230.1,1.8014]
[1610325374418,4.00959,1232.4,1230.2,10.0]
[1610325374618,4.00959,1230.3,1230.2,10.0]
[1610325374820,4.00959,1230.3,1230.1,1.8014]
[1610325375018,4.00959,1230.3,1230.2,10.0]
[1610325375818,4.00959,1230.3,1230.2,11.24308486]
[1610325377421,2.2626,1230.7,1230.2,11.24308486]
[1610325377721,2.2626,1230.7,1230.3,10.0]
[1610325378024,1.6289,1231.0,1230.2,1.24308486]
[1610325378223,1.6289,1231.0,1230.4,10.0]
[1610325378423,11.6207,1232.3,1230.3,12.3627]
[1610325378623,11.6207,1232.3,1230.5,10.0]
[1610325379022,11.6207,1232.3,1230.4,11.24284647]
[1610325379223,11.6207,1232.3,1230.6,10.0]
[1610325380028,11.6207,1232.3,1230.7,10.0]
[1610325380428,11.6207,1232.3,1230.5,11.24329439]
[1610325380627,11.6207,1232.3,1230.8,10.0]
[1610325381028,11.6207,1232.3,1230.5,1.24329439]
[1610325381227,11.6207,1232.3,1230.9,10.0]
[1610325381626,11.6207,1232.3,1230.6,10.0]
[1610325381826,11.6207,1232.3,1230.1,10.0]
[1610325382432,11.6207,1232.3,1230.2,10.0]
[1610325382636,5.6026,1232.3,1230.2,10.0]
[1610325382829,5.6026,1232.3,1230.2,1.24348107]
[1610325383028,5.6026,1232.3,1230.4,4.00959]
[1610325383029,4.00959,1230.6,1230.4,4.00959]
[1610325383429,4.00959,1230.6,1230.2,1.24348107]
[1610325383630,4.00959,1230.6,1230.5,10.0]
[1610325384028,4.00959,1230.6,1230.3,10.0]
[1610325384230,4.00959,1230.6,1230.4,10.0]
[1610325384633,4.00959,1230.6,1230.3,10.0]
[1610325385033,2.3337,1231.0,1230.0,10.0]
[1610325385232,2.3337,1231.0,1230.0,12.4548]
[1610325385433,2.3337,1231.0,1230.1,10.0]
[1610325385632,4.00959,1230.4,1230.1,10.0]
[1610325385832,4.00959,1230.4,1230.2,10.0]
[1610325386234,4.00959,1230.4,1230.1,10.0]
[1610325386633,4.00959,1230.4,1230.0,10.0]
[1610325386833,4.00959,1230.4,1230.2,1.24338035]
[1610325387433,4.00959,1230.4,1230.3,10.0]
[1610325387636,2.2246,1230.5,1230.3,10.0]
[1610325388038,2.2246,1230.5,1230.4,10.0]
[1610325388236,4.00959,1230.7,1230.4,14.00959]
[1610325389037,4.00959,1230.7,1230.5,10.0]
[1610325389438,4.00959,1230.7,1230.6,10.0]
[1610325389838,4.00959,1230.7,1230.5,10.0]
[1610325390039,4.00959,1230.7,1230.5,11.24311588]
[1610325390239,2.3337,1231.0,1230.6,10.0]
[1610325390439,53.6978,1231.1,1230.6,10.0]
[1610325390639,53.6978,1231.1,1230.5,1.24311588]
[1610325390640,53.6978,1231.1,1230.7,10.0]
[1610325391040,53.6978,1231.1,1230.5,1.24311588]
[1610325391041,53.6978,1231.1,1230.6,10.0]
[1610325391239,55.4612,1231.1,1230.6,10.0]
[1610325391441,55.4612,1231.1,1230.8,10.0]
[1610325391839,55.4612,1231.1,1230.7,10.0]
[1610325392040,55.4612,1231.1,1229.6,2.4687]
[1610325392241,55.4612,1231.1,1230.8,10.0]
[1610325392441,55.4612,1231.1,1229.7,10.0]
[1610325392642,4.00959,1230.3,1230.2,4.00959]
[1610325392843,2.4479,1230.6,1230.2,4.00959]